fUST/lending_fUST_20250312
["ID","MTS","AMOUNT","RATE_DAILY","PERIOD"]
[355958990,1741734680898,-500.0,0.00021369,2]
[355958991,1741734680908,-1214.06,0.00021369,2]
[355958992,1741734680918,-868.24,0.00021369,2]
[355958993,1741734680928,-500.0,0.00021369,2]
[355958994,1741734680938,-1227.37,0.00021369,2]
[355958995,1741734680948,-500.0,0.00021369,2]
[355958996,1741734680958,-728.17,0.00021369,2]
[355958997,1741734680968,-1170.42,0.00021369,2]
[355958998,1741734680978,-500.0,0.00021369,2]
[355958999,1741734680988,-5008.44,0.00021369,2]
[355959000,1741734680998,-500.0,0.00021369,2]
[355959001,1741734681008,-1568.17,0.00021369,2]
[355959002,1741734681018,-751.65,0.00021369,2]
[355959003,1741734681028,-500.0,0.00021369,2]
[355959004,1741734681037,-595.41,0.00021369,2]
[355959005,1741734681047,-1467.72,0.00021369,2]
[355959006,1741734681057,-653.8,0.00021369,2]
[355959007,1741734681071,-4529.09,0.00021369,2]
[355959008,1741734681087,-500.0,0.00021369,2]
[355959009,1741734681097,-1000.0,0.00021369,7]
[355959010,1741734681107,-500.0,0.00021369,2]
[355959011,1741734681117,-500.0,0.00021369,2]
[355959012,1741734681126,-521.65287727,0.00021369,2]
[355959013,1741734681136,-1488.91,0.00021369,2]
[355959014,1741734681146,-2429.43,0.00021369,2]
[355959015,1741734681157,-621.67,0.00021369,2]
[355959016,1741734681167,-920.31,0.00021369,2]
[355959017,1741734681176,-500.0,0.00021369,2]
[355959018,1741734681186,-500.0,0.00021369,2]
[355959019,1741734681195,-957.86,0.00021369,2]
[355959020,1741734681205,-1110.2,0.00021369,2]
[355959021,1741734681215,-544.11,0.00021369,2]
[355959022,1741734681225,-500.0,0.00021369,2]
[355959023,1741734681235,-952.07,0.00021369,2]
[355959024,1741734681245,-576.21,0.00021369,2]
[355959025,1741734681255,-738.24,0.00021369,2]
[355959026,1741734681264,-9999.0,0.00021369,2]
[355959027,1741734681274,-853.84,0.00021369,2]
[355959028,1741734681283,-500.0,0.00021369,2]
[355959029,1741734681294,-544.34,0.00021369,2]
[355959030,1741734681303,-500.0,0.00021369,2]
[355959031,1741734681314,-500.0,0.00021369,2]
[355959032,1741734681324,-500.0,0.00021369,2]
[355959033,1741734681333,-677.1,0.00021369,2]
[355959034,1741734681343,-4842.64,0.00021369,2]
[355959035,1741734681353,-500.0,0.00021369,2]
[355959036,1741734681363,-500.0,0.00021369,2]
[355959037,1741734681372,-518.91,0.00021369,2]
[355959038,1741734681382,-4054.19,0.00021369,2]
[355959039,1741734681392,-866.55,0.00021369,2]
[355959040,1741734681401,-3046.16,0.00021369,2]
[355959041,1741734681411,-500.0,0.00021369,2]
[355959042,1741734681422,-160.0,0.0002137,7]
[355959043,1741734681432,-160.0,0.0002137,7]
[355959044,1741734681441,-626.0,0.000214,2]
[355959045,1741734681451,-479.99,0.000214,2]
[355959046,1741734681461,-1142.28,0.0002148,2]
[355959047,1741734681471,-3772.17,0.0002148,2]
[355959048,1741734681480,-163381.79,0.0002148,2]
[355959049,1741734681490,-2671.58,0.0002148,2]
[355959050,1741734681500,-863.38,0.0002148,2]
[355959051,1741734681509,-5706.05,0.0002148,2]
[355959052,1741734681519,-500.0,0.0002148,2]
[355959053,1741734681529,-664.48,0.0002148,2]
[355959054,1741734681538,-500.0,0.0002148,2]
[355959055,1741734681548,-3577.81,0.0002148,2]
[355959056,1741734681557,-909.63,0.00021483,2]
[355959057,1741734681567,-500.0,0.00021483,2]
[355959058,1741734681576,-1219.12,0.00021483,2]
[355959059,1741734681586,-500.0,0.00021483,2]
[355959060,1741734681595,-500.0,0.00021483,2]
[355959061,1741734681604,-735.93,0.00021483,2]
[355959062,1741734681614,-613.95,0.00021483,2]
[355959063,1741734681623,-500.0,0.00021483,2]
[355959064,1741734681633,-500.0,0.00021483,2]
[355959065,1741734681643,-617.74,0.00021483,2]
[355959066,1741734681653,-500.0,0.00021483,2]
[355959067,1741734681663,-1157.79,0.00021483,2]
[355959068,1741734681673,-610.48,0.00021483,2]
[355959069,1741734681682,-500.0,0.00021483,2]
[355959070,1741734681692,-547.18,0.00021483,2]
[355959071,1741734681702,-500.0,0.00021483,2]
[355959072,1741734681712,-1437.26,0.00021483,2]
[355959073,1741734681722,-500.0,0.00021483,2]
[355959074,1741734681732,-559.53,0.00021483,2]
[355959075,1741734681743,-1184.99,0.00021483,2]
[355959076,1741734681755,-541.3,0.00021483,2]
[355959077,1741734681764,-500.0,0.00021483,2]
[355959078,1741734681774,-500.0,0.00021483,2]
[355959079,1741734681784,-500.0,0.00021483,2]
[355959080,1741734681794,-500.0,0.00021483,2]
[355959081,1741734681805,-500.0,0.00021483,2]
[355959082,1741734681814,-500.0,0.00021483,2]
[355959083,1741734681826,-500.0,0.00021483,2]
[355959084,1741734681836,-1059.92,0.00021483,2]
[355959085,1741734681845,-500.0,0.00021483,2]
[355959086,1741734681855,-677.01,0.00021483,2]
[355959087,1741734681866,-1053.17,0.00021483,2]
[355959088,1741734681876,-1149.09,0.00021483,2]
[355959089,1741734681885,-2390.45,0.00021483,2]
[355959090,1741734681896,-673.04,0.00021483,2]
[355959091,1741734681915,-500.0,0.00021483,2]
[355959092,1741734681932,-500.0,0.00021483,2]
[355959093,1741734681949,-1109.37,0.00021483,2]
[355959094,1741734681961,-1057.29,0.00021483,2]
[355959095,1741734681976,-725.09,0.00021483,2]
[355959096,1741734681992,-853.84,0.00021483,2]
[355959097,1741734682008,-536.23,0.00021483,2]
[355959098,1741734682025,-500.0,0.00021483,2]
[355959099,1741734682040,-740.86,0.00021483,2]
[355959100,1741734682056,-500.0,0.00021483,2]
[355959101,1741734682071,-500.0,0.00021487,2]
[355959102,1741734682085,-500.0,0.00021487,2]
[355959103,1741734682099,-527.54,0.00021487,2]
[355959104,1741734682113,-500.0,0.00021487,2]
[355959105,1741734682129,-500.0,0.00021487,2]
[355959106,1741734682144,-504.98,0.00021487,2]
[355959107,1741734682157,-500.0,0.00021487,2]
[355959108,1741734682168,-622.0,0.00021487,2]
[355959109,1741734682182,-500.0,0.00021487,2]
[355959110,1741734682195,-554.08,0.00021487,2]
[355959111,1741734682209,-2973.52,0.00021487,2]
[355959112,1741734682225,-601.0,0.00021487,2]
[355959113,1741734682240,-500.0,0.00021487,2]
[355959114,1741734682256,-691.82,0.00021487,2]
[355959115,1741734682271,-500.0,0.00021487,2]
[355959116,1741734682285,-500.0,0.00021487,2]
[355959117,1741734682296,-500.0,0.00021487,2]
[355959118,1741734682307,-500.0,0.00021487,2]
[355959119,1741734682320,-500.0,0.00021487,2]
[355959120,1741734682337,-500.0,0.00021487,2]
[355959121,1741734682352,-512.0363047,0.00021487,2]
[355959122,1741734682363,-602.44,0.00021487,2]
[355959123,1741734682377,-500.0,0.00021487,2]
[355959124,1741734682402,-500.0,0.00021487,2]
[355959125,1741734682418,-820.67,0.00021487,2]
[355959126,1741734682434,-500.0,0.00021487,2]
[355959127,1741734682448,-793.66,0.00021487,2]
[355959128,1741734682464,-590.49,0.00021487,2]
[355959129,1741734682476,-500.0,0.00021487,2]
[355959130,1741734682487,-500.0,0.00021487,2]
[355959131,1741734682507,-500.0,0.00021487,2]
[355959132,1741734682521,-535.91,0.00021487,2]
[355959133,1741734682537,-500.0,0.00021487,2]
[355959134,1741734682553,-500.0,0.00021487,2]
[355959135,1741734682567,-654.51,0.00021487,2]
[355959136,1741734682583,-500.0,0.00021487,2]
[355959137,1741734682597,-500.0,0.00021487,2]
[355959138,1741734682611,-500.0,0.00021487,2]
[355959139,1741734682625,-864.43,0.00021487,2]
[355959140,1741734682638,-500.0,0.00021487,2]
[355959141,1741734682651,-1196.8,0.00021487,2]
[355959142,1741734682665,-511.37775261,0.00021487,2]
[355959143,1741734682679,-500.0,0.00021487,2]
[355959144,1741734682693,-920.25,0.00021487,2]
[355959145,1741734682706,-500.0,0.00021487,2]
[355959146,1741734682720,-1396.49,0.00021487,2]
[355959147,1741734682733,-385.79570611,0.00021487,2]
[355959148,1741734682752,-247.2248644,0.00021487,2]
[355959149,1741734682765,-548.11,0.00021487,2]
[355959150,1741734682780,-520.0973477,0.00021487,2]
[355959151,1741734682794,-647.17,0.00021487,5]
[355959152,1741734682807,-500.0,0.00021487,2]
[355959153,1741734682821,-500.0,0.00021487,2]
[355959154,1741734682834,-500.0,0.00021487,2]
[355959155,1741734682847,-500.0,0.00021487,2]
[355959156,1741734682860,-500.0,0.00021487,2]
[355959157,1741734682872,-627.98,0.00021487,2]
[355959158,1741734682886,-500.0,0.0002149,2]
[355959159,1741734682899,-500.0,0.0002149,2]
[355959160,1741734682913,-500.0,0.0002149,2]
[355959161,1741734682926,-728.06,0.0002149,2]
[355959162,1741734682939,-958.86,0.0002149,2]
[355959163,1741734682952,-1101.24,0.0002149,2]
[355959164,1741734682967,-987.72,0.0002149,2]
[355959165,1741734682981,-500.0,0.00021491,2]
[355959166,1741734682995,-500.0,0.00021491,2]
[355959167,1741734683009,-500.0,0.00021491,2]
[355959168,1741734683022,-1782.88,0.00021491,2]
[355959169,1741734683036,-559.98,0.00021491,2]
[355959170,1741734683050,-640.92,0.00021491,2]
[355959171,1741734683063,-500.0,0.00021491,2]
[355959172,1741734683077,-578.46,0.00021491,2]
[355959173,1741734683090,-1913.04,0.00021491,2]
[355959174,1741734683104,-500.0,0.00021491,2]
[355959175,1741734683117,-500.0,0.00021491,2]
[355959176,1741734683130,-888.29,0.00021491,2]
[355959177,1741734683143,-748.42,0.00021491,2]
[355959178,1741734683156,-164.76336843,0.0002158,2]
[355959179,1741734683169,-500.0,0.0002158,2]
[355959180,1741734683182,-601.79,0.00021643,2]
[355959181,1741734683196,-723.39,0.00021643,2]
[355959182,1741734683208,-500.0,0.00021643,2]
[355959183,1741734683221,-500.0,0.00021643,2]
[355959184,1741734683233,-500.0,0.00021643,2]
[355959185,1741734683246,-500.0,0.00021643,2]
[355959186,1741734683258,-500.0,0.00021643,2]
[355959187,1741734683271,-659.44,0.00021643,2]
[355959188,1741734683283,-500.0,0.00021643,2]
[355959189,1741734683296,-500.0,0.00021643,2]
[355959190,1741734683308,-500.0,0.00021643,2]
[355959191,1741734683321,-500.0,0.00021643,2]
[355959192,1741734683334,-1136.06,0.00021643,2]
[355959193,1741734683346,-500.0,0.00021643,2]
[355959194,1741734683359,-711.23,0.00021643,2]
[355959195,1741734683372,-500.0,0.00021643,2]
[355959196,1741734683384,-500.0,0.00021643,2]
[355959197,1741734683397,-710.79,0.00021643,2]
[355959198,1741734683409,-152.32652221,0.00021643,2]
[355959199,1741734683421,-500.0,0.00021643,2]
[355959200,1741734683434,-500.0,0.00021643,2]
[355959201,1741734683447,-500.0,0.00021643,2]
[355959202,1741734683459,-1151.95,0.00021643,2]
[355959203,1741734683472,-500.0,0.00021643,2]
[355959204,1741734683484,-513.3,0.00021643,2]
[355959205,1741734683497,-714.14,0.00021643,2]
[355959206,1741734683510,-500.0,0.00021643,2]
[355959207,1741734683522,-500.0,0.00021643,2]
[355959208,1741734683535,-1290.07,0.00021643,2]
[355959209,1741734683548,-500.0,0.00021643,2]
[355959210,1741734683561,-500.0,0.00021643,2]
[355959211,1741734683574,-4997.1,0.00021643,2]
[355959212,1741734683586,-500.0,0.00021643,2]
[355959213,1741734683599,-500.0,0.00021643,2]
[355959214,1741734683612,-500.0,0.00021643,2]
[355959215,1741734683624,-1292.35,0.00021643,2]
[355959216,1741734683636,-605.24,0.00021643,2]
[355959217,1741734683648,-1188.37,0.00021643,2]
[355959218,1741734683661,-404.04545844,0.00021643,2]
[355959219,1741734683673,-604.97,0.00021643,2]
[355959220,1741734683686,-500.0,0.00021643,2]
[355959221,1741734683698,-1994.33,0.00021643,2]
[355959222,1741734683710,-630.73,0.00021643,2]
[355959223,1741734683723,-892.18,0.00021643,2]
[355959224,1741734683739,-755.13,0.00021643,2]
[355959225,1741734683754,-545.99,0.00021643,2]
[355959226,1741734683766,-1156.57,0.00021643,2]
[355959227,1741734683779,-520.62,0.00021643,2]
[355959228,1741734683792,-1451.2,0.00021643,2]
[355959229,1741734683805,-500.0,0.00021643,2]
[355959230,1741734683817,-621.0,0.00021643,2]
[355959231,1741734683832,-1784.22,0.00021643,2]
[355959232,1741734683844,-500.0,0.00021643,2]
[355959233,1741734683857,-521.7306749,0.00021643,2]
[355959234,1741734683869,-500.0,0.00021643,2]
[355959235,1741734683882,-500.0,0.00021643,2]
[355959236,1741734683895,-500.0,0.00021643,2]
[355959237,1741734683907,-500.0,0.00021643,2]
[355959238,1741734683920,-326.80492834,0.00021643,2]
[355959239,1741734683938,-1214.06,0.00021643,2]
[355959240,1741734683950,-868.24,0.00021643,2]
[355959241,1741734683963,-500.0,0.00021643,2]
[355959242,1741734683976,-1227.37,0.00021643,2]
[355959243,1741734683989,-500.0,0.00021643,2]
[355959244,1741734684001,-728.17,0.00021643,2]
[355959245,1741734684013,-1170.42,0.00021643,2]
[355959246,1741734684025,-500.0,0.00021643,2]
[355959247,1741734684037,-5008.44,0.00021643,2]
[355959248,1741734684050,-500.0,0.00021643,2]
[355959249,1741734684062,-1568.17,0.00021643,2]
[355959250,1741734684075,-751.65,0.00021643,2]
[355959251,1741734684088,-500.0,0.00021643,2]
[355959252,1741734684100,-595.41,0.00021643,2]
[355959253,1741734684112,-1467.72,0.00021643,2]
[355959254,1741734684125,-653.8,0.00021643,2]
[355959255,1741734684138,-4529.09,0.00021643,2]
[355959256,1741734684152,-500.0,0.00021643,2]
[355959257,1741734684164,-1000.0,0.00021643,7]
[355959258,1741734684178,-500.0,0.00021643,2]
[355959259,1741734684190,-500.0,0.00021643,2]
[355959260,1741734684203,-1488.91,0.00021643,2]
[355959261,1741734684216,-2429.43,0.00021643,2]
[355959262,1741734684228,-621.67,0.00021643,2]
[355959263,1741734684241,-920.31,0.00021643,2]
[355959264,1741734684254,-500.0,0.00021643,2]
[355959265,1741734684269,-621.09307839,0.00021643,2]
[355959266,1741734684281,-957.86,0.00021643,2]
[355959267,1741734684293,-1110.2,0.00021643,2]
[355959268,1741734684306,-544.11,0.00021643,2]
[355959269,1741734684319,-500.0,0.00021643,2]
[355959270,1741734684332,-952.07,0.00021643,2]
[355959271,1741734684345,-576.21,0.00021643,2]
[355959272,1741734684358,-738.24,0.00021643,2]
[355959273,1741734684371,-9999.0,0.00021643,2]
[355959274,1741734684384,-853.84,0.00021643,2]
[355959275,1741734684397,-500.0,0.00021643,2]
[355959276,1741734684410,-544.34,0.00021643,2]
[355959277,1741734684422,-500.0,0.00021643,2]
[355959278,1741734684435,-500.0,0.00021643,2]
[355959279,1741734684449,-500.0,0.00021643,2]
[355959280,1741734684461,-677.1,0.00021643,2]
[355959281,1741734684473,-4842.64,0.00021643,2]
[355959282,1741734684487,-500.0,0.00021643,2]
[355959283,1741734684499,-500.0,0.00021643,2]
[355959284,1741734684511,-518.91,0.00021643,2]
[355959285,1741734684525,-4054.19,0.00021643,2]
[355959286,1741734684536,-866.55,0.00021643,2]
[355959287,1741734684550,-3046.16,0.00021643,2]
[355959288,1741734684561,-500.0,0.00021643,2]
[355959289,1741734684574,-186.0,0.00021681,2]
[355959290,1741734684587,-175.0,0.00021681,2]
[355959291,1741734684599,-292.0,0.00021681,2]
[355959292,1741734684612,-1142.28,0.00021754,2]
[355959293,1741734684625,-3772.17,0.00021754,2]
[355959294,1741734684637,-163381.79,0.00021754,2]
[355959295,1741734684650,-2671.58,0.00021754,2]
[355959296,1741734684662,-863.38,0.00021754,2]
[355959297,1741734684675,-5706.05,0.00021754,2]
[355959298,1741734684687,-500.0,0.00021754,2]
[355959299,1741734684700,-664.48,0.00021754,2]
[355959300,1741734684713,-500.0,0.00021754,2]
[355959301,1741734684725,-3577.81,0.00021754,2]
[355959302,1741734684737,-909.63,0.00021757,2]
[355959303,1741734685167,-500.0,0.00021757,2]
[355959304,1741734685192,-1219.12,0.00021757,2]
[355959305,1741734685223,-500.0,0.00021757,2]
[355959306,1741734685238,-500.0,0.00021757,2]
[355959307,1741734685248,-735.93,0.00021757,2]
[355959308,1741734685258,-613.95,0.00021757,2]
[355959309,1741734685267,-500.0,0.00021757,2]
[355959310,1741734685278,-500.0,0.00021757,2]
[355959311,1741734685287,-617.74,0.00021757,2]
[355959312,1741734685297,-500.0,0.00021757,2]
[355959313,1741734685307,-1157.79,0.00021757,2]
[355959314,1741734685317,-610.48,0.00021757,2]
[355959315,1741734685326,-500.0,0.00021757,2]
[355959316,1741734685336,-547.18,0.00021757,2]
[355959317,1741734685346,-500.0,0.00021757,2]
[355959318,1741734685356,-1437.26,0.00021757,2]
[355959319,1741734685366,-500.0,0.00021757,2]
[355959320,1741734685376,-559.53,0.00021757,2]
[355959321,1741734685385,-1184.99,0.00021757,2]
[355959322,1741734685395,-541.3,0.00021757,2]
[355959323,1741734685405,-500.0,0.00021757,2]
[355959324,1741734685414,-500.0,0.00021757,2]
[355959325,1741734685424,-500.0,0.00021757,2]
[355959326,1741734685433,-500.0,0.00021757,2]
[355959327,1741734685443,-500.0,0.00021757,2]
[355959328,1741734685453,-500.0,0.00021757,2]
[355959329,1741734685463,-500.0,0.00021757,2]
[355959330,1741734685472,-1059.92,0.00021757,2]
[355959331,1741734685481,-500.0,0.00021757,2]
[355959332,1741734685490,-677.01,0.00021757,2]
[355959333,1741734685501,-1053.17,0.00021757,2]
[355959334,1741734685510,-1149.09,0.00021757,2]
[355959335,1741734685520,-2390.45,0.00021757,2]
[355959336,1741734685530,-673.04,0.00021757,2]
[355959337,1741734685540,-500.0,0.00021757,2]
[355959338,1741734685550,-500.0,0.00021757,2]
[355959339,1741734685559,-1109.37,0.00021757,2]
[355959340,1741734685569,-1057.29,0.00021757,2]
[355959341,1741734685578,-725.09,0.00021757,2]
[355959342,1741734685588,-853.84,0.00021757,2]
[355959343,1741734685598,-536.23,0.00021757,2]
[355959344,1741734685608,-500.0,0.00021757,2]
[355959345,1741734685618,-740.86,0.00021757,2]
[355959346,1741734685627,-500.0,0.00021757,2]
[355959347,1741734685637,-500.0,0.00021761,2]
[355959348,1741734685647,-500.0,0.00021761,2]
[355959349,1741734685657,-527.54,0.00021761,2]
[355959350,1741734685666,-500.0,0.00021761,2]
[355959351,1741734685676,-570.13056275,0.00021761,2]
[355959352,1741734685686,-504.98,0.00021761,2]
[355959353,1741734685695,-570.22209075,0.00021761,2]
[355959354,1741734685705,-622.0,0.00021761,2]
[355959355,1741734685714,-500.0,0.00021761,2]
[355959356,1741734685724,-554.08,0.00021761,2]
[355959357,1741734685734,-2973.52,0.00021761,2]
[355959358,1741734685745,-601.0,0.00021761,2]
[355959359,1741734685756,-500.0,0.00021761,2]
[355959360,1741734685766,-691.82,0.00021761,2]
[355959361,1741734685776,-500.0,0.00021761,2]
[355959362,1741734685786,-500.0,0.00021761,2]
[355959363,1741734685796,-500.0,0.00021761,2]
[355959364,1741734685806,-500.0,0.00021761,2]
[355959365,1741734685815,-500.0,0.00021761,2]
[355959366,1741734685826,-500.0,0.00021761,2]
[355959367,1741734685836,-602.44,0.00021761,2]
[355959368,1741734685845,-494.08250732,0.00021761,2]
[355959369,1741734685855,-500.0,0.00021761,2]
[355959370,1741734685864,-820.67,0.00021761,2]
[355959371,1741734685873,-500.0,0.00021761,2]
[355959372,1741734685883,-793.66,0.00021761,2]
[355959373,1741734685892,-590.49,0.00021761,2]
[355959374,1741734685902,-500.0,0.00021761,2]
[355959375,1741734685912,-500.0,0.00021761,2]
[355959376,1741734685921,-500.0,0.00021761,2]
[355959377,1741734685932,-535.91,0.00021761,2]
[355959378,1741734685941,-500.0,0.00021761,2]
[355959379,1741734685951,-500.0,0.00021761,2]
[355959380,1741734685960,-654.51,0.00021761,2]
[355959381,1741734685970,-509.45737417,0.00021761,2]
[355959382,1741734685980,-366.96136303,0.00021761,2]
[355959383,1741734685989,-864.43,0.00021761,2]
[355959384,1741734686000,-500.0,0.00021761,2]
[355959385,1741734686009,-1196.8,0.00021761,2]
[355959386,1741734686019,-548.94960521,0.00021761,2]
[355959387,1741734686029,-920.25,0.00021761,2]
[355959388,1741734686038,-1396.49,0.00021761,2]
[355959389,1741734686048,-548.11,0.00021761,2]
[355959390,1741734686057,-647.17,0.00021761,5]
[355959391,1741734686067,-500.0,0.00021761,2]
[355959392,1741734686077,-500.0,0.00021761,2]
[355959393,1741734686087,-500.0,0.00021761,2]
[355959394,1741734686097,-500.0,0.00021761,2]
[355959395,1741734686106,-500.0,0.00021761,2]
[355959396,1741734686115,-627.98,0.00021761,2]
[355959397,1741734686125,-500.0,0.00021764,2]
[355959398,1741734686135,-500.0,0.00021764,2]
[355959399,1741734686145,-500.0,0.00021764,2]
[355959400,1741734686154,-728.06,0.00021764,2]
[355959401,1741734686164,-958.86,0.00021764,2]
[355959402,1741734686174,-1101.24,0.00021764,2]
[355959403,1741734686184,-987.72,0.00021764,2]
[355959404,1741734686193,-500.0,0.00021765,2]
[355959405,1741734686203,-500.0,0.00021765,2]
[355959406,1741734686212,-500.0,0.00021765,2]
[355959407,1741734686222,-1782.88,0.00021765,2]
[355959408,1741734686232,-559.98,0.00021765,2]
[355959409,1741734686242,-640.92,0.00021765,2]
[355959410,1741734686252,-500.0,0.00021765,2]
[355959411,1741734686262,-578.46,0.00021765,2]
[355959412,1741734686272,-1913.04,0.00021765,2]
[355959413,1741734686281,-500.0,0.00021765,2]
[355959414,1741734686291,-500.0,0.00021765,2]
[355959415,1741734686301,-888.29,0.00021765,2]
[355959416,1741734686311,-748.42,0.00021765,2]
[355959417,1741734686320,-27256.92785283,0.000218,3]
[355959418,1741734686330,-3500.0,0.000218,2]
[355959419,1741734686339,-3000.0,0.000218,2]
[355959420,1741734686349,-160.0,0.000218,3]
[355959421,1741734686359,-160.0,0.000218,3]
[355959422,1741734686368,-5511.151766,0.0002181,2]
[355959423,1741734686378,-3000.0,0.00021818,2]
[355959424,1741734686387,-500.0,0.00021853,2]
[355959425,1741734686397,-320.7813,0.000219,2]
[355959426,1741734686406,-158.770233,0.00021911,2]
[355959427,1741734686416,-23179.53,0.00021917,2]
[355959428,1741734686426,-542.81,0.00021917,2]
[355959429,1741734686435,-500.0,0.00021917,2]
[355959430,1741734686445,-500.0,0.00021917,2]
[355959431,1741734686455,-500.0,0.00021917,2]
[355959432,1741734686465,-2091.01,0.00021917,2]
[355959433,1741734686474,-13103.95,0.00021917,2]
[355959434,1741734686484,-9736.43,0.00021917,2]
[355959435,1741734686494,-794.64,0.00021917,2]
[355959436,1741734686503,-705.67,0.00021917,2]
[355959437,1741734686512,-536.16,0.00021917,2]
[355959438,1741734686522,-500.0,0.00021917,2]
[355959439,1741734686531,-500.0,0.00021917,2]
[355959440,1741734686541,-229.66667247,0.00021917,2]
[355959441,1741734686551,-500.0,0.00021917,2]
[355959442,1741734686561,-576.66,0.00021917,2]
[355959443,1741734686571,-500.0,0.00021917,2]
[355959444,1741734686580,-1473.83,0.00021917,2]
[355959445,1741734686590,-570.33,0.00021917,2]
[355959446,1741734686599,-500.0,0.00021917,2]
[355959447,1741734686609,-500.0,0.00021917,2]
[355959448,1741734686618,-500.0,0.00021917,2]
[355959449,1741734686628,-505.73,0.00021917,2]
[355959450,1741734686637,-5474.57,0.00021917,2]
[355959451,1741734686647,-3769.43,0.00021917,2]
[355959452,1741734686657,-1250.48,0.00021917,2]
[355959453,1741734686666,-2486.99,0.00021917,2]
[355959454,1741734686676,-525.77,0.00021917,2]
[355959455,1741734686686,-500.0,0.00021917,2]
[355959456,1741734686696,-827.67,0.00021917,2]
[355959457,1741734686705,-513.82,0.00021917,2]
[355959458,1741734686715,-601.79,0.00021917,2]
[355959459,1741734686725,-723.39,0.00021917,2]
[355959460,1741734686735,-500.0,0.00021917,2]
[355959461,1741734686746,-500.0,0.00021917,2]
[355959462,1741734686757,-500.0,0.00021917,2]
[355959463,1741734686767,-500.0,0.00021917,2]
[355959464,1741734686777,-500.0,0.00021917,2]
[355959465,1741734686787,-659.44,0.00021917,2]
[355959466,1741734686797,-500.0,0.00021917,2]
[355959467,1741734686807,-500.0,0.00021917,2]
[355959468,1741734686817,-500.0,0.00021917,2]
[355959469,1741734686828,-500.0,0.00021917,2]
[355959470,1741734686838,-1136.06,0.00021917,2]
[355959471,1741734686848,-500.0,0.00021917,2]
[355959472,1741734686858,-711.23,0.00021917,2]
[355959473,1741734686869,-500.0,0.00021917,2]
[355959474,1741734686878,-500.0,0.00021917,2]
[355959475,1741734686888,-710.79,0.00021917,2]
[355959476,1741734686898,-500.0,0.00021917,2]
[355959477,1741734686908,-500.0,0.00021917,2]
[355959478,1741734686918,-500.0,0.00021917,2]
[355959479,1741734686928,-1151.95,0.00021917,2]
[355959480,1741734686937,-500.0,0.00021917,2]
[355959481,1741734686947,-513.3,0.00021917,2]
[355959482,1741734686957,-714.14,0.00021917,2]
[355959483,1741734686966,-500.0,0.00021917,2]
[355959484,1741734686976,-500.0,0.00021917,2]
[355959485,1741734686987,-175.0,0.00021917,2]
[355959486,1741734686997,-205.21995156,0.00021917,2]
[355959487,1741734687007,-150.33,0.00021917,2]
[355959488,1741734687016,-150.33,0.00021917,2]
[355959489,1741734687026,-150.33,0.00021917,2]